fUST/lending_fUST_20250302
["ID","MTS","AMOUNT","RATE_DAILY","PERIOD"]
[354953959,1740845442363,-524.41823688,0.00027397,2]
[354953960,1740845442374,-174.53736287,0.00027397,2]
[354953961,1740845442384,-500.0,0.00027397,2]
[354953962,1740845442394,-773.48,0.00027397,2]
[354953963,1740845442405,-500.0,0.00027397,2]
[354953964,1740845442416,-340.03135605,0.00027397,2]
[354953965,1740845442428,-500.0,0.00027397,2]
[354953966,1740845442439,-500.0,0.00027397,2]
[354953967,1740845442449,-500.0,0.00027397,2]
[354953968,1740845442459,-500.0,0.00027397,2]
[354953969,1740845442470,-500.0,0.00027397,2]
[354953970,1740845442480,-500.0,0.00027397,2]
[354953971,1740845442491,-670.02,0.00027397,2]
[354953972,1740845442501,-762.63,0.00027397,2]
[354953973,1740845442512,-500.0,0.00027397,2]
[354953974,1740845442522,-500.0,0.00027397,2]
[354953975,1740845442534,-500.0,0.00027397,2]
[354953976,1740845442545,-500.0,0.00027397,2]
[354953977,1740845442556,-500.0,0.00027397,2]
[354953978,1740845442567,-500.0,0.00027397,2]
[354953979,1740845442578,-500.0,0.00027397,2]
[354953980,1740845442589,-500.0,0.00027397,2]
[354953981,1740845442599,-500.0,0.00027397,2]
[354953982,1740845442610,-500.0,0.00027397,2]
[354953983,1740845442620,-1176.21,0.00027397,2]
[354953984,1740845442631,-500.0,0.00027397,2]
[354953985,1740845442641,-1291.3,0.00027397,2]
[354953986,1740845442651,-500.0,0.00027397,2]
[354953987,1740845442661,-752.75,0.00027397,2]
[354953988,1740845442672,-200.0,0.00027397,2]
[354953989,1740845442682,-500.0,0.00027397,2]
[354953991,1740845442692,-500.0,0.00027397,2]
[354953992,1740845442703,-500.0,0.00027397,2]
[354953993,1740845442713,-500.0,0.00027397,2]
[354953994,1740845442723,-500.0,0.00027397,2]
[354953995,1740845442733,-500.0,0.00027397,2]
[354953996,1740845442744,-500.0,0.00027397,2]
[354953997,1740845442755,-1787.86,0.00027397,2]
[354953999,1740845442765,-500.0,0.00027397,2]
[354954000,1740845442776,-500.0,0.00027397,2]
[354954002,1740845442786,-500.0,0.00027397,2]
[354954003,1740845442796,-500.0,0.00027397,2]
[354954004,1740845442806,-500.0,0.00027397,2]
[354954005,1740845442817,-500.0,0.00027397,2]
[354954006,1740845442827,-500.0,0.00027397,2]
[354954008,1740845442837,-1662.26,0.00027397,2]
[354954010,1740845442847,-1662.26,0.00027397,2]
[354954011,1740845442858,-612.51,0.00027397,2]
[354954012,1740845442869,-1662.26,0.00027397,2]
[354954013,1740845442880,-1662.26,0.00027397,2]
[354954014,1740845442890,-525.37108251,0.00027397,2]
[354954015,1740845442903,-1662.26,0.00027397,2]
[354954016,1740845442913,-500.0,0.00027397,2]
[354954017,1740845442923,-1662.26,0.00027397,2]
[354954018,1740845442934,-1662.26,0.00027397,2]
[354954019,1740845442945,-502.64324863,0.00027397,2]
[354954020,1740845442955,-1662.26,0.00027397,2]
[354954021,1740845442966,-1662.26,0.00027397,2]
[354954022,1740845442976,-1662.26,0.00027397,2]
[354954023,1740845442986,-1662.26,0.00027397,2]
[354954024,1740845442996,-500.0,0.00027397,2]
[354954025,1740845443007,-1662.26,0.00027397,2]
[354954026,1740845443017,-500.0,0.00027397,2]
[354954027,1740845443028,-1662.26,0.00027397,2]
[354954028,1740845443039,-1662.26,0.00027397,2]
[354954029,1740845443049,-500.0,0.00027397,2]
[354954030,1740845443060,-500.0,0.00027397,2]
[354954031,1740845443070,-500.0,0.00027397,2]
[354954032,1740845443080,-1099.17,0.00027397,2]
[354954033,1740845443090,-500.0,0.00027397,2]
[354954034,1740845443100,-500.0,0.00027397,2]
[354954035,1740845443109,-500.0,0.00027397,2]
[354954036,1740845443120,-673.42,0.00027397,2]
[354954037,1740845443129,-500.0,0.00027397,2]
[354954038,1740845443139,-500.0,0.00027397,2]
[354954039,1740845443149,-500.0,0.00027397,2]
[354954040,1740845443159,-500.0,0.00027397,2]
[354954041,1740845443170,-1099.45,0.00027397,2]
[354954042,1740845443179,-500.0,0.00027397,2]
[354954043,1740845443190,-500.0,0.00027397,2]
[354954044,1740845443200,-500.0,0.00027397,2]
[354954045,1740845443209,-500.0,0.00027397,2]
[354954046,1740845443219,-500.0,0.00027397,2]
[354954047,1740845443229,-500.0,0.00027397,2]
[354954048,1740845443239,-500.0,0.00027397,2]
[354954049,1740845443249,-500.0,0.00027397,2]
[354954050,1740845443259,-520.93932452,0.00027397,2]
[354954051,1740845443269,-500.0,0.00027397,2]
[354954052,1740845443280,-500.0,0.00027397,2]
[354954053,1740845443296,-500.0,0.00027397,2]
[354954054,1740845443306,-500.0,0.00027397,2]
[354954055,1740845443316,-536.71,0.00027397,2]
[354954056,1740845443327,-500.0,0.00027397,2]
[354954057,1740845443338,-500.0,0.00027397,2]
[354954058,1740845443348,-632.14,0.00027397,2]
[354954059,1740845443359,-500.0,0.00027397,2]
[354954060,1740845443369,-500.0,0.00027397,2]
[354954061,1740845443380,-267.40314318,0.00027397,2]
[354954062,1740845443390,-500.0,0.00027397,2]
[354954063,1740845443401,-500.0,0.00027397,2]
[354954064,1740845443411,-500.0,0.00027397,2]
[354954065,1740845443422,-151.0,0.00027397,7]
[354954066,1740845443432,-500.0,0.00027397,2]
[354954067,1740845443442,-1905.85,0.00027397,2]
[354954068,1740845443453,-501.33529888,0.00027397,2]
[354954069,1740845443464,-500.0,0.00027397,2]
[354954070,1740845443474,-500.0,0.00027397,2]
[354954071,1740845443484,-500.0,0.00027397,2]
[354954072,1740845443494,-500.0,0.00027397,2]
[354954073,1740845443505,-500.0,0.00027397,2]
[354954074,1740845443515,-1000.0,0.00027397,2]
[354954075,1740845443526,-1685.79,0.00027397,2]
[354954086,1740845443661,-500.0,0.00027397,2]
[354954087,1740845443672,-500.0,0.00027397,2]
[354954088,1740845443681,-500.0,0.00027397,2]
[354954089,1740845443691,-558.34152741,0.00027397,2]
[354954090,1740845443700,-564.6,0.00027397,2]
[354954091,1740845443710,-500.0,0.00027397,2]
[354954092,1740845443720,-500.0,0.00027397,2]
[354954093,1740845443729,-500.0,0.00027397,2]
[354954094,1740845443739,-500.0,0.00027397,2]
[354954095,1740845443749,-1059.85,0.00027397,2]
[354954096,1740845443759,-500.0,0.00027397,2]
[354954097,1740845443768,-500.0,0.00027397,2]
[354954098,1740845443778,-500.0,0.00027397,2]
[354954099,1740845443788,-500.0,0.00027397,2]
[354954100,1740845443797,-500.0,0.00027397,2]
[354954101,1740845443807,-502.59422479,0.00027397,2]
[354954102,1740845443817,-500.0,0.00027397,2]
[354954103,1740845443827,-732.83,0.00027397,2]
[354954104,1740845443836,-500.0,0.00027397,2]
[354954105,1740845443846,-500.0,0.00027397,2]
[354954106,1740845443858,-500.0,0.00027397,2]
[354954107,1740845443868,-500.0,0.00027397,2]
[354954108,1740845443878,-500.0,0.00027397,2]
[354954109,1740845443888,-500.0,0.00027397,2]
[354954110,1740845443898,-500.0,0.00027397,2]
[354954111,1740845443908,-740.07,0.00027397,2]
[354954112,1740845443917,-500.0,0.00027397,2]
[354954113,1740845443928,-1458.62,0.00027397,2]
[354954114,1740845443940,-500.0,0.00027397,2]
[354954115,1740845443949,-1284.29,0.00027397,2]
[354954116,1740845443959,-505.98346316,0.00027397,2]
[354954117,1740845443968,-500.0,0.00027397,2]
[354954118,1740845443978,-500.0,0.00027397,2]
[354954119,1740845443987,-500.0,0.00027397,2]
[354954120,1740845443997,-500.0,0.00027397,2]
[354954121,1740845444006,-543.24,0.00027397,2]
[354954122,1740845444015,-500.0,0.00027397,2]
[354954123,1740845444025,-500.0,0.00027397,2]
[354954124,1740845444035,-509.14059452,0.00027397,2]
[354954125,1740845444044,-500.0,0.00027397,2]
[354954126,1740845444054,-500.0,0.00027397,2]
[354954127,1740845444063,-500.0,0.00027397,2]
[354954128,1740845444073,-500.0,0.00027397,2]
[354954129,1740845444083,-500.0,0.00027397,2]
[354954130,1740845444092,-632.33112071,0.00027397,2]
[354954131,1740845444102,-500.0,0.00027397,2]
[354954132,1740845444111,-500.0,0.00027397,2]
[354954133,1740845444121,-500.0,0.00027397,2]
[354954134,1740845444130,-510.19824017,0.00027397,2]
[354954135,1740845444139,-747.81,0.00027397,2]
[354954136,1740845444148,-778.76,0.00027397,2]
[354954137,1740845444158,-500.0,0.00027397,2]
[354954138,1740845444167,-500.0,0.00027397,2]
[354954139,1740845444177,-501.07904265,0.00027397,2]
[354954140,1740845444187,-500.0,0.00027397,2]
[354954141,1740845444197,-500.0,0.00027397,2]
[354954142,1740845444207,-500.0,0.00027397,2]
[354954143,1740845444216,-500.0,0.00027397,2]
[354954144,1740845444226,-500.0,0.00027397,2]
[354954145,1740845444235,-500.0,0.00027397,2]
[354954146,1740845444245,-500.0,0.00027397,2]
[354954147,1740845444254,-500.0,0.00027397,2]
[354954148,1740845444264,-500.0,0.00027397,2]
[354954149,1740845444274,-500.0,0.00027397,2]
[354954150,1740845444283,-500.0,0.00027397,2]
[354954151,1740845444293,-1431.27,0.00027397,2]
[354954152,1740845444303,-500.0,0.00027397,2]
[354954153,1740845444313,-1335.29,0.00027397,2]
[354954154,1740845444323,-1315.24,0.00027397,2]
[354954155,1740845444333,-673.47,0.00027397,2]
[354954156,1740845444342,-500.0,0.00027397,2]
[354954157,1740845444352,-959.71,0.00027397,2]
[354954158,1740845444361,-500.0,0.00027397,2]
[354954159,1740845444371,-248.05441895,0.00027397,2]
[354954160,1740845444381,-500.0,0.00027397,2]
[354954161,1740845444391,-1681.81,0.00027397,2]
[354954162,1740845444400,-1681.81,0.00027397,2]
[354954163,1740845444410,-500.0,0.00027397,2]
[354954164,1740845444420,-1681.81,0.00027397,2]
[354954165,1740845444429,-1681.81,0.00027397,2]
[354954166,1740845444439,-716.19,0.00027397,2]
[354954167,1740845444449,-1681.81,0.00027397,2]
[354954168,1740845444458,-1681.81,0.00027397,2]
[354954169,1740845444467,-1681.81,0.00027397,2]
[354954170,1740845444477,-1681.81,0.00027397,2]
[354954171,1740845444486,-1681.81,0.00027397,2]
[354954172,1740845444496,-500.0,0.00027397,2]
[354954173,1740845444505,-1681.81,0.00027397,2]
[354954174,1740845444515,-1681.81,0.00027397,2]
[354954175,1740845444524,-1681.81,0.00027397,2]
[354954176,1740845444533,-500.0,0.00027397,2]
[354954177,1740845444542,-1681.81,0.00027397,2]
[354954178,1740845444552,-1681.81,0.00027397,2]
[354954179,1740845444561,-261.59417179,0.00027397,2]
[354954180,1740845444571,-500.0,0.00027397,2]
[354954181,1740845444580,-500.0,0.00027397,2]
[354954182,1740845444590,-500.0,0.00027397,2]
[354954183,1740845444599,-578.59,0.00027397,2]
[354954184,1740845444609,-500.0,0.00027397,2]
[354954185,1740845444619,-1517.25,0.00027397,2]
[354954186,1740845444629,-500.0,0.00027397,2]
[354954187,1740845444638,-500.0,0.00027397,2]
[354954188,1740845444648,-500.0,0.00027397,2]
[354954189,1740845444657,-500.0,0.00027397,2]
[354954190,1740845444666,-500.0,0.00027397,2]
[354954191,1740845444676,-500.0,0.00027397,2]
[354954192,1740845444687,-2094.38,0.00027397,2]
[354954193,1740845444696,-575.46,0.00027397,2]
[354954194,1740845444707,-500.0,0.00027397,2]
[354954195,1740845444717,-500.0,0.00027397,2]
[354954196,1740845444726,-500.0,0.00027397,2]
[354954197,1740845444736,-500.0,0.00027397,2]
[354954198,1740845444747,-500.0,0.00027397,2]
[354954199,1740845444756,-500.0,0.00027397,2]
[354954200,1740845444766,-505.24489741,0.00027397,2]
[354954201,1740845444776,-500.0,0.00027397,2]
[354954202,1740845444786,-500.0,0.00027397,2]
[354954203,1740845444795,-500.0,0.00027397,2]
[354954204,1740845444805,-500.0,0.00027397,2]
[354954205,1740845444815,-2170.83,0.00027397,2]
[354954206,1740845444824,-500.0,0.00027397,2]
[354954207,1740845444834,-531.7,0.00027397,2]
[354954208,1740845444843,-500.0,0.00027397,2]
[354954209,1740845444853,-500.0,0.00027397,2]
[354954210,1740845444867,-500.0,0.00027397,2]
[354954211,1740845444876,-500.0,0.00027397,2]
[354954212,1740845444886,-500.0,0.00027397,2]
[354954213,1740845444896,-500.0,0.00027397,2]
[354954214,1740845444907,-2252.21,0.00027397,2]
[354954215,1740845444916,-500.0,0.00027397,2]
[354954216,1740845444927,-634.21803824,0.00027397,2]
[354954217,1740845444937,-1741.22,0.00027397,2]
[354954218,1740845444948,-350.43520324,0.00027397,2]
[354954219,1740845444958,-591.88,0.00027397,2]
[354954220,1740845444968,-826.09,0.00027397,2]
[354954221,1740845444978,-500.0,0.00027397,2]
[354954222,1740845444987,-664.91,0.00027397,2]
[354954223,1740845444997,-500.0,0.00027397,2]
[354954224,1740845445007,-502.03,0.00027397,2]
[354954225,1740845445017,-680.92,0.00027397,2]
[354954226,1740845445028,-500.0,0.00027397,2]
[354954227,1740845445039,-500.0,0.00027397,2]
[354954228,1740845445048,-500.0,0.00027397,2]
[354954229,1740845445057,-500.0,0.00027397,2]
[354954230,1740845445067,-1744.53,0.00027397,2]
[354954231,1740845445078,-500.0,0.00027397,2]
[354954232,1740845445087,-500.0,0.00027397,2]
[354954233,1740845445097,-500.0,0.00027397,2]
[354954234,1740845445107,-500.0,0.00027397,2]
[354954235,1740845445116,-500.0,0.00027397,2]
[354954236,1740845445126,-461.66681,0.00027397,7]
[354954237,1740845445136,-500.0,0.00027397,2]
[354954238,1740845445146,-500.0,0.00027397,2]
[354954239,1740845445156,-506.5410076,0.00027397,2]
[354954240,1740845445166,-461.66681,0.00027397,7]
[354954241,1740845445177,-500.0,0.00027397,2]
[354954242,1740845445188,-500.0,0.00027397,2]
[354954243,1740845445198,-500.0,0.00027397,2]
[354954244,1740845445208,-685.6,0.00027397,2]
[354954245,1740845445219,-500.0,0.00027397,2]
[354954246,1740845445229,-500.0,0.00027397,2]
[354954247,1740845445239,-500.0,0.00027397,2]
[354954248,1740845445248,-1572.62,0.00027397,2]
[354954249,1740845445258,-500.0,0.00027397,2]
[354954250,1740845445268,-500.0,0.00027397,2]
[354954251,1740845445277,-505.73008203,0.00027397,2]
[354954252,1740845445287,-500.0,0.00027397,2]
[354954253,1740845445297,-500.0,0.00027397,2]
[354954254,1740845445306,-500.0,0.00027397,2]
[354954255,1740845445316,-500.0,0.00027397,2]
[354954256,1740845445326,-500.0,0.00027397,2]
[354954257,1740845445336,-500.0,0.00027397,2]
[354954258,1740845445345,-500.0,0.00027397,2]
[354954259,1740845445355,-1531.22,0.00027397,2]
[354954260,1740845445365,-500.0,0.00027397,2]
[354954261,1740845445374,-500.0,0.00027397,2]
[354954262,1740845445384,-500.0,0.00027397,2]
[354954263,1740845445393,-500.0,0.00027397,2]
[354954264,1740845445402,-500.0,0.00027397,2]
[354954265,1740845445412,-3254.62,0.00027397,2]
[354954266,1740845445421,-500.0,0.00027397,2]
[354954267,1740845445431,-500.0,0.00027397,2]
[354954268,1740845445441,-151.0,0.00027397,7]
[354954269,1740845445451,-500.0,0.00027397,2]
[354954270,1740845445461,-500.0,0.00027397,2]
[354954271,1740845445471,-500.0,0.00027397,2]
[354954272,1740845445481,-500.0,0.00027397,2]
[354954273,1740845445490,-1370.24,0.00027397,2]
[354954274,1740845445500,-500.0,0.00027397,2]
[354954275,1740845445509,-500.0,0.00027397,2]
[354954276,1740845445519,-611.48,0.00027397,2]
[354954277,1740845445528,-500.0,0.00027397,2]
[354954278,1740845445538,-509.94,0.00027397,2]
[354954279,1740845445547,-964.9,0.00027397,2]
[354954280,1740845445556,-500.0,0.00027397,2]
[354954281,1740845445566,-7197.11,0.00027397,2]
[354954282,1740845445576,-165.922297,0.00027397,7]
[354954283,1740845445585,-507.30752933,0.00027397,2]
[354954284,1740845445595,-500.0,0.00027397,2]
[354954285,1740845445605,-500.0,0.00027397,2]
[354954286,1740845445615,-500.0,0.00027397,2]
[354954287,1740845445624,-500.0,0.00027397,2]
[354954288,1740845445634,-500.0,0.00027397,2]
[354954289,1740845445644,-500.0,0.00027397,2]
[354954290,1740845445654,-500.0,0.00027397,2]
[354954291,1740845445664,-500.0,0.00027397,2]
[354954292,1740845445674,-1123.34,0.00027397,2]
[354954293,1740845445684,-600.56,0.00027397,2]
[354954295,1740845445694,-500.0,0.00027397,2]
[354954296,1740845445703,-500.0,0.00027397,2]
[354954297,1740845445713,-500.0,0.00027397,2]
[354954298,1740845445723,-500.0,0.00027397,2]
[354954300,1740845445732,-500.0,0.00027397,2]
[354954302,1740845445742,-503.14924684,0.00027397,2]
[354954304,1740845445752,-187.77379486,0.00027397,2]
[354954306,1740845445762,-500.0,0.00027397,2]
[354954308,1740845445771,-500.0,0.00027397,2]
[354954309,1740845445781,-500.0,0.00027397,2]
[354954310,1740845445790,-151.0,0.00027397,7]
[354954312,1740845445800,-500.0,0.00027397,2]
[354954314,1740845445810,-500.0,0.00027397,2]
[354954316,1740845445819,-649.22,0.00027397,2]
[354954318,1740845445829,-165.922297,0.00027397,7]
[354954319,1740845445838,-500.0,0.00027397,2]
[354954320,1740845445848,-710.98,0.00027397,2]
[354954322,1740845445859,-500.0,0.00027397,2]
[354954323,1740845445870,-539.97,0.00027397,2]
[354954325,1740845445879,-282.03434974,0.00027397,2]
[354954327,1740845445889,-157.91491,0.00027397,7]
[354954328,1740845445898,-500.0,0.00027397,2]
[354954329,1740845445909,-151.0,0.00027397,7]
[354954330,1740845445920,-563.87,0.00027397,2]
[354954331,1740845445930,-3648.85,0.00027397,2]
[354954333,1740845445943,-1298.35,0.00027397,2]
[354954334,1740845445953,-500.0,0.00027397,2]
[354954335,1740845445963,-500.0,0.00027397,2]
[354954336,1740845445973,-500.0,0.00027397,2]
[354954337,1740845445982,-607.48,0.00027397,2]
[354954338,1740845445992,-1508.37,0.00027397,2]
[354954339,1740845446002,-500.0,0.00027397,2]
[354954340,1740845446011,-500.0,0.00027397,2]
[354954341,1740845446021,-500.0,0.00027397,2]
[354954342,1740845446030,-500.0,0.00027397,2]
[354954343,1740845446040,-261.433308,0.00027397,7]
[354954344,1740845446049,-501.47775902,0.00027397,2]
[354954345,1740845446059,-151.0,0.00027397,7]
[354954346,1740845446069,-500.0,0.00027397,2]
[354954347,1740845446078,-544.28,0.00027397,2]
[354954348,1740845446088,-261.433308,0.00027397,7]
[354954349,1740845446098,-500.0,0.00027397,2]
[354954350,1740845446107,-151.0,0.00027397,7]
[354954351,1740845446117,-500.0,0.00027397,2]
[354954352,1740845446127,-500.0,0.00027397,2]
[354954353,1740845446149,-500.0,0.00027397,2]
[354954354,1740845446159,-500.0,0.00027397,2]
[354954355,1740845446169,-500.0,0.00027397,2]
[354954356,1740845446179,-2428.02,0.00027397,2]
[354954357,1740845446189,-500.0,0.00027397,2]
[354954358,1740845446200,-500.0,0.00027397,2]
[354954359,1740845446210,-500.0,0.00027397,2]
[354954360,1740845446220,-10399.1,0.00027397,2]
[354954361,1740845446230,-500.0,0.00027397,2]
[354954362,1740845446240,-500.0,0.00027397,2]
[354954363,1740845446249,-508.27184429,0.00027397,2]
[354954364,1740845446259,-500.0,0.00027397,2]
[354954365,1740845446268,-434.02940829,0.00027397,2]
[354954366,1740845446278,-500.0,0.00027397,2]
[354954367,1740845446288,-500.0,0.00027397,2]
[354954368,1740845446298,-500.0,0.00027397,2]
[354954369,1740845446309,-939.60964312,0.00027397,30]
[354954371,1740845446319,-500.0,0.00027397,2]
[354954373,1740845446329,-2276.78,0.00027397,2]
[354954374,1740845446340,-775.3,0.00027397,2]
[354954375,1740845446350,-3370.6,0.00027397,2]
[354954376,1740845446361,-723.15,0.00027397,2]
[354954377,1740845446372,-500.0,0.00027397,2]
[354954379,1740845446381,-1321.62,0.00027397,2]
[354954380,1740845446391,-1750.68,0.00027397,2]
[354954381,1740845446402,-500.0,0.00027397,2]
[354954382,1740845446412,-762.75,0.00027397,2]
[354954383,1740845446422,-500.0,0.00027397,2]
[354954384,1740845446433,-500.0,0.00027397,2]
[354954385,1740845446443,-989.74,0.00027397,2]
[354954386,1740845446453,-500.0,0.00027397,2]
[354954387,1740845446464,-615.95050168,0.00027397,2]
[354954388,1740845446474,-500.0,0.00027397,2]
[354954389,1740845446483,-500.0,0.00027397,2]
[354954390,1740845446495,-17096.48,0.00027397,2]
[354954391,1740845446504,-500.0,0.00027397,2]
[354954392,1740845446514,-500.0,0.00027397,2]
[354954393,1740845446524,-2503.96,0.00027397,2]
[354954394,1740845446533,-2157.47,0.00027397,2]
[354954395,1740845446543,-500.0,0.00027397,2]
[354954396,1740845446552,-675.89,0.00027397,2]
[354954397,1740845446562,-573.77727748,0.00027397,2]
[354954398,1740845446572,-504.06,0.00027397,2]
[354954399,1740845446582,-500.0,0.00027397,2]
[354954400,1740845446591,-500.0,0.00027397,2]
[354954401,1740845446601,-500.0,0.00027397,2]
[354954402,1740845446611,-151.0,0.00027397,7]
[354954403,1740845446621,-500.0,0.00027397,2]
[354954404,1740845446632,-2911.22,0.00027397,2]
[354954405,1740845446643,-500.0,0.00027397,2]
[354954406,1740845446652,-502.98892794,0.00027397,2]
[354954407,1740845446662,-225456.27,0.00027397,2]
[354954408,1740845446672,-500.0,0.00027397,2]
[354954409,1740845446684,-500.0,0.00027397,2]
[354954410,1740845446694,-173.185072,0.00027397,7]
[354954411,1740845446705,-154.865842,0.00027397,7]
[354954412,1740845446716,-631.21,0.00027397,2]
[354954413,1740845446726,-500.0,0.00027397,2]
[354954414,1740845446737,-173.185072,0.00027397,7]
[354954415,1740845446748,-500.0,0.00027397,2]
[354954416,1740845446759,-500.0,0.00027397,2]
[354954417,1740845446770,-151.0,0.00027397,7]
[354954418,1740845446781,-9650.55,0.00027397,2]
[354954419,1740845446791,-500.0,0.00027397,2]
[354954420,1740845446802,-500.0,0.00027397,2]
[354954421,1740845446813,-500.0,0.00027397,2]
[354954422,1740845446824,-1303.18,0.00027397,5]
[354954423,1740845446835,-500.0,0.00027397,2]
[354954424,1740845446845,-699.03,0.00027397,2]
[354954425,1740845446861,-151.0,0.00027397,7]
[354954426,1740845446872,-510.24,0.00027397,2]
[354954427,1740845446882,-1183.5,0.00027397,2]
[354954428,1740845446894,-500.0,0.00027397,2]
[354954429,1740845446904,-151.0,0.00027397,7]
[354954430,1740845446915,-4420.81,0.00027397,2]
[354954431,1740845446928,-500.0,0.00027397,2]
[354954432,1740845446939,-921.23,0.00027397,2]
[354954433,1740845446950,-1327.23,0.00027397,2]
[354954434,1740845446961,-500.0,0.00027397,2]
[354954435,1740845446971,-1286.789308,0.00027397,7]
[354954436,1740845446982,-1581.37,0.00027397,2]
[354954437,1740845446993,-1506.63,0.00027397,2]
[354954438,1740845447004,-151.0,0.00027397,7]
[354954439,1740845447015,-557.86,0.00027397,2]
[354954440,1740845447025,-1069.69,0.00027397,2]
[354954441,1740845447037,-5083.88,0.00027397,2]
[354954442,1740845447048,-768.55,0.00027397,2]
[354954443,1740845447058,-160.97737788,0.00027397,2]
[354954444,1740845447069,-500.0,0.00027397,2]
[354954445,1740845447080,-1462.35,0.00027397,2]
[354954446,1740845447091,-500.0,0.00027397,2]
[354954447,1740845447101,-2348.6,0.00027397,2]
[354954448,1740845447111,-1286.789308,0.00027397,7]
[354954449,1740845447122,-500.0,0.00027397,2]
[354954450,1740845447133,-518.02578708,0.00027397,2]
[354954451,1740845447144,-2044.68,0.00027397,2]
[354954452,1740845447154,-533.35,0.00027397,2]
[354954453,1740845447165,-167.5383512,0.00027397,2]
[354954454,1740845447176,-500.0,0.00027397,2]
[354954455,1740845447187,-500.0,0.00027397,2]
[354954456,1740845447198,-500.0,0.00027397,2]
[354954457,1740845447209,-500.0,0.00027397,2]
[354954458,1740845447220,-500.0,0.00027397,2]
[354954459,1740845447231,-2520.0,0.00027397,2]
[354954460,1740845447243,-2520.0,0.00027397,2]
[354954461,1740845447254,-2520.0,0.00027397,2]
[354954462,1740845447265,-5976.45,0.00027397,2]
[354954463,1740845447275,-151.616542,0.00027397,7]
[354954464,1740845447287,-500.0,0.00027397,2]
[354954465,1740845447298,-2520.0,0.00027397,2]
[354954466,1740845447308,-2520.0,0.00027397,2]
[354954467,1740845447319,-2520.0,0.00027397,2]
[354954468,1740845447332,-500.0,0.00027397,2]
[354954469,1740845447342,-2520.0,0.00027397,2]
[354954470,1740845447353,-2520.0,0.00027397,2]
[354954471,1740845447364,-2520.0,0.00027397,2]
[354954472,1740845447374,-2355.23,0.00027397,2]
[354954473,1740845447385,-2520.0,0.00027397,2]
[354954474,1740845447396,-2520.0,0.00027397,2]
[354954475,1740845447407,-2520.0,0.00027397,2]
[354954476,1740845447418,-2520.0,0.00027397,2]
[354954477,1740845447429,-2520.0,0.00027397,2]
[354954478,1740845447440,-191.93832139,0.00027397,2]
[354954479,1740845447450,-599.09500389,0.00027397,2]
[354954480,1740845447460,-780.39,0.00027397,2]
[354954481,1740845447471,-500.0,0.00027397,2]
[354954482,1740845447482,-500.0,0.00027397,2]
[354954483,1740845447492,-151.0,0.00027397,7]
[354954484,1740845447504,-1113.59,0.00027397,2]
[354954485,1740845447514,-12948.86,0.00027397,2]
[354954486,1740845447525,-1854.03,0.00027397,2]
[354954487,1740845447536,-500.0,0.00027397,2]
[354954488,1740845447546,-500.0,0.00027397,2]
[354954489,1740845447557,-500.0,0.00027397,2]
[354954490,1740845447568,-500.0,0.00027397,2]